Cogmind - Beta 11 X7 --- EXPLORER MODE // 2021.09.29 @ 21:11:46 // Winter2019/RPGLIKE Player: jfk Result: Self-destructed Performance ------------- Evolutions (2) 1000 Regions Visited (5) 1000 Robots Destroyed (9) 45 Value Destroyed (154) 154 Prototype IDs (26) 520 Alien Tech Used (0) 0 Bonus (300) 300 TOTAL SCORE: 3019 Bonus ------- Aligned with FarCom 300 Cogmind --------- Core Integrity 584/600 Matter 254/300 Energy 415/415 System Corruption 0% Temperature Cool (0) Movement Flying (50) Location -8/Materials Parts ------- > --- POWER (2) -------- Ion Engine Improved Ion Engine > --- PROPULSION (4) --- Flying Fortress v7 > --- UTILITY (6) ------ Terrain Scanner > --- WEAPON (3) ------- Guided Plasma Cannon Light Assault Rifle Light Assault Rifle > --- INVENTORY (2) ---- Protomatter-53 Peak State ------------ > --- POWER ------------ (None) > --- PROPULSION ------- Flying Fortress v7 > --- UTILITY ---------- Experimental Sensor Array > --- WEAPON ----------- Guided Plasma Cannon > --- INVENTORY -------- (None) [Rating: 49] Favorites ----------- Power Ion Engine Engine Ion Engine Propulsion Flying Fortress v7 Flight Unit Flying Fortress v7 Utility Terrain Scanner Device Terrain Scanner Weapon Guided Plasma Cannon Energy Cannon Guided Plasma Cannon Ballistic Gun Light Assault Rifle Build | -11 -10 -10 -10 -9 -8 ------- Run | Scr Mat Min Exi Min Mat Slots Evolved 11 | . . . 3 . 8 Power 1 | . . . . . 1 Propulsion 3 | . . . 3 . . Utility 5 | . . . . . 5 Weapon 2 | . . . . . 2 Parts Attached 10 | . 1 . 2 3 4 Power 3 | . . . . 1 2 Engine 3 | . . . . 1 2 Core . | . . . . . . Reactor . | . . . . . . Propulsion 1 | . . . 1 . . Treads . | . . . . . . Leg . | . . . . . . Wheel . | . . . . . . Hover . | . . . . . . Flight 1 | . . . 1 . . Utility 3 | . 1 . . 2 . Device 3 | . 1 . . 2 . Storage . | . . . . . . Processor . | . . . . . . Hackware . | . . . . . . Protection . | . . . . . . Artifact . | . . . . . . Weapon 3 | . . . 1 . 2 Energy Gun . | . . . . . . Energy Cannon 1 | . . . 1 . . Ballistic Gun 2 | . . . . . 2 Ballistic Cannon . | . . . . . . Launcher . | . . . . . . Special Weapon . | . . . . . . Impact Weapon . | . . . . . . Slashing Weapon . | . . . . . . Piercing Weapon . | . . . . . . Special Melee Weapon . | . . . . . . Unidentified Prototypes 1 | . . . . 1 . Parts Lost . | . . . . . . Power . | . . . . . . Propulsion . | . . . . . . Utility . | . . . . . . Weapon . | . . . . . . Highest Loss Streak . | . . . . . . Average Slot Usage (%) 34 | . 12 25 32 48 49 Engine 4 | . . . . 5 13 Flight 5 | . . . 6 14 8 Device 17 | . 12 25 20 14 8 Energy Cannon 5 | . . . 6 14 8 Ballistic Gun 1 | . . . . . 8 Naked Turns 36 | . 36 . . . . Heaviest Build 25 | . 1 1 11 16 25 Greatest Support 50 | 3 3 3 50 50 50 Greatest Overweight (x) . | . . . . . . Average Overweight (x) . | . . . . . . Largest Inventory Capacity 2 | . . . . . 2 Average Capacity . | . . . . . . Most Carried 1 | . . . . . 1 Average Carried . | . . . . . . Final Capacity 2 | . . . . . 2 Final Carried 1 | . . . . . 1 Class Distribution -------------------- 60% | Hacker-Mutant 39% | Hacker-Scout Dominant Class ---------------- Hacker-Mutant | -10/Materials Hacker-Mutant | -10/Mines Hacker-Mutant | -10/Exiles Hacker-Scout | -9/Mines Hacker-Scout | -8/Materials Resources | -11 -10 -10 -10 -9 -8 ----------- Run | Scr Mat Min Exi Min Mat Matter Collected 260 | . . . 57 181 22 Remotely . | . . . . . . Salvage Created 138 | . . . . 21 117 Parts 12 | . . . . 1 11 Haulers Intercepted 1 | . . . . . 1 Recyclers Shooed . | . . . . . . Parts Field Recycled . | . . . . . . Retrieved Matter . | . . . . . . Parts Self-Destructed . | . . . . . . Prevented . | . . . . . . Kills | -11 -10 -10 -10 -9 -8 ------- Run | Scr Mat Min Exi Min Mat Combat Hostiles Destroyed 8 | . . . . 2 6 Cannons 8 | . . . . 2 6 Classes Destroyed 4 | . . . . 1 3 Hauler 1 | . . . . . 1 Swarmer 6 | . . . . 2 4 Grunt 1 | . . . . . 1 Sentry 1 | . . . . . 1 Best Kill Streak 4 | . . . . 2 4 Combat Bots Only 4 | . . . . 2 4 Max Kills in Single Turn 1 | . . . . 1 1 Gunslinging . | . . . . . . Exploded . | . . . . . . Melee . | . . . . . . Uniques/NPCs Destroyed . | . . . . . . Combat | -11 -10 -10 -10 -9 -8 -------- Run | Scr Mat Min Exi Min Mat Damage Taken 129 | . . 52 . 23 54 Core 113 | . . 51 . 18 44 Absorbed by Shields . | . . . . . . Redirected to Core 43 | . . 4 . 13 26 Core Remaining (%) 97 | 100 . . . 94 . Volleys Fired 26 | . . . . 7 19 Largest 2 | . . . . 1 2 Hottest 120 | . . . . 120 120 Shots Fired 29 | . . . . 7 22 Gun 6 | . . . . . 6 Cannon 23 | . . . . 7 16 Launcher . | . . . . . . Special . | . . . . . . Kinetic 6 | . . . . . 6 Thermal 23 | . . . . 7 16 Explosive . | . . . . . . Electromagnetic . | . . . . . . Robot Hit Streak 22 | . . . . 4 22 Robot Miss Streak . | . . . . . . Penetration Max . | . . . . . . Secondary Targets . | . . . . . . Shots Hit Robots 22 | . . . . 4 18 Core Hits 10 | . . . . 2 8 Critical Kills . | . . . . . . Critical Parts Destroyed . | . . . . . . Critical Strikes . | . . . . . . Melee Attacks . | . . . . . . Impact . | . . . . . . Slashing . | . . . . . . Piercing . | . . . . . . Sneak Attacks . | . . . . . . Combat Hostiles . | . . . . . . Follow-up Attacks . | . . . . . . Damage Inflicted 813 | . . . . 211 602 Guns 45 | . . . . . 45 Cannons 768 | . . . . 211 557 Explosions . | . . . . . . Melee . | . . . . . . Ramming . | . . . . . . Kinetic 45 | . . . . . 45 Thermal 768 | . . . . 211 557 Explosive . | . . . . . . Electromagnetic . | . . . . . . Impact . | . . . . . . Slashing . | . . . . . . Piercing . | . . . . . . Highest Corruption . | . . . . . . Average Corruption . | . . . . . . Corruption Purged . | . . . . . . Overload Shots . | . . . . . . Overflow Damage . | . . . . . . Projectiles . | . . . . . . Explosions . | . . . . . . Melee . | . . . . . . Knockbacks . | . . . . . . Impact . | . . . . . . Kinetic . | . . . . . . Secondary . | . . . . . . Self-Inflicted Damage . | . . . . . . Shots . | . . . . . . Rammed . | . . . . . . Targets Rammed . | . . . . . . Kicked . | . . . . . . Crushed . | . . . . . . Highest Temperature 389 | . . . . 389 . Average Temperature 199 | . . . . 199 . Received Heat Transfer 18 | . . . . . 18 Siege Activations . | . . . . . . Robots Corrupted . | . . . . . . Combat Hostiles . | . . . . . . Parts Fried . | . . . . . . Impact Corruptions . | . . . . . . Robots Melted 1 | . . . . . 1 Combat Hostiles . | . . . . . . Parts Melted 3 | . . . . . 3 Heat Transferred 1680 | . . . . 480 1200 Parts Sabotaged . | . . . . . . Parts Stolen . | . . . . . . Parts Stripped . | . . . . . . Power Chain Reactions . | . . . . . . Missiles Intercepted . | . . . . . . Alert | -11 -10 -10 -10 -9 -8 ------- Run | Scr Mat Min Exi Min Mat Peak Influence 204 | . 6 36 . 50 204 Initial 13 | . . 1 . . 13 Average 41 | . 5 11 . 7 124 Maximum Alert Level 1 | . . . . . 1 Low Security (%) 98 | 100 100 100 . 100 95 Level 1 1 | . . . . . 4 Level 2 . | . . . . . . Level 3 . | . . . . . . Level 4 . | . . . . . . Level 5 . | . . . . . . High Security . | . . . . . . Max Security . | . . . . . . Squads Dispatched . | . . . . . . Investigation . | . . . . . . Extermination . | . . . . . . Reinforcement . | . . . . . . Assault . | . . . . . . Garrison . | . . . . . . Intercept . | . . . . . . Construction Impeded . | . . . . . . Haulers Reinforced . | . . . . . . Active Scanning Responses . | . . . . . . Cargo Convoy Interrupts . | . . . . . . Stealth | -11 -10 -10 -10 -9 -8 --------- Run | Scr Mat Min Exi Min Mat Distress Signals 1 | . . . . . 1 Communications Jammed . | . . . . . . Distress Signals . | . . . . . . Times Spotted 14 | . . 4 . 2 8 Peak Tracking Total 6 | . . 2 . 2 6 Tactical Retreats 3 | . . 2 . . 1 Traps | -11 -10 -10 -10 -9 -8 ------- Run | Scr Mat Min Exi Min Mat Traps Triggered . | . . . . . . Indirectly . | . . . . . . Trap Hack Attempts . | . . . . . . Triggered . | . . . . . . Disarmed . | . . . . . . Reprogrammed . | . . . . . . Reused . | . . . . . . Traps Extracted . | . . . . . . Installed . | . . . . . . Triggered . | . . . . . . Machines | -11 -10 -10 -10 -9 -8 ---------- Run | Scr Mat Min Exi Min Mat Machines Disabled . | . . . . . . Max in Single Turn . | . . . . . . Machines Sabotaged . | . . . . . . Garrisons Compromised . | . . . . . . Overloaded Fab Kills . | . . . . . . Fab Network Shutdowns . | . . . . . . Hacking | -11 -10 -10 -10 -9 -8 --------- Run | Scr Mat Min Exi Min Mat Machines Accessed 3 | . 1 . 1 . 1 Terminals 2 | . 1 . . . 1 Fabricators . | . . . . . . Repair Stations . | . . . . . . Recycling Units . | . . . . . . Scanalyzers . | . . . . . . Garrison Access . | . . . . . . Total Hacks 3 | . 1 . 1 . 1 Successful 3 | . 1 . 1 . 1 Failed . | . . . . . . Catastrophic . | . . . . . . Database Lockouts . | . . . . . . Manual 2 | . 1 . 1 . . Terminals 2 | . 1 . . . 1 Fabricators . | . . . . . . Repair Stations . | . . . . . . Recycling Units . | . . . . . . Scanalyzers . | . . . . . . Garrison Access . | . . . . . . Terminal Hacks 3 | . 1 . 1 . 1 Prototype ID Bank 1 | . . . . . 1 Branch Access Points 1 | . 1 . . . . EX-Prototype ID Bank 1 | . . . 1 . . Fabricator Hacks . | . . . . . . Repair Station Hacks . | . . . . . . Recycling Unit Hacks . | . . . . . . Scanalyzer . | . . . . . . Garrison Access Hacks . | . . . . . . Unauthorized Hacks . | . . . . . . Terminals . | . . . . . . Fabricators . | . . . . . . Repair Stations . | . . . . . . Recycling Units . | . . . . . . Scanalyzers . | . . . . . . Garrison Access . | . . . . . . Data Cores Recovered . | . . . . . . Used . | . . . . . . Hacking Detections . | . . . . . . Full Trace Events . | . . . . . . Feedback Events . | . . . . . . Feedback Blocked . | . . . . . . Robot Schematics Acquired . | . . . . . . Robots Built . | . . . . . . Matter . | . . . . . . Time . | . . . . . . Total Robot Build Rating . | . . . . . . Part Schematics Acquired . | . . . . . . Parts Built . | . . . . . . Matter . | . . . . . . Time . | . . . . . . Total Part Build Rating . | . . . . . . Parts Repaired . | . . . . . . Time . | . . . . . . Parts Recycled . | . . . . . . Recycled Matter . | . . . . . . Retrieved Matter . | . . . . . . Retrieved Components . | . . . . . . Parts Scanalyzed . | . . . . . . Part Schematics Acquired . | . . . . . . Parts Damaged . | . . . . . . Bothacking | -11 -10 -10 -10 -9 -8 ------------ Run | Scr Mat Min Exi Min Mat Used RIF Installer . | . . . . . . Robots Hacked . | . . . . . . Non-combat . | . . . . . . Combat . | . . . . . . Robot Hacks Applied . | . . . . . . Relay Couplers Released . | . . . . . . Robots Rewired . | . . . . . . Allies Hacked . | . . . . . . Hacks Repelled . | . . . . . . Allies | -11 -10 -10 -10 -9 -8 -------- Run | Scr Mat Min Exi Min Mat Total Allies 2 | . . 2 . . . Largest Group 2 | . . 2 . . . Highest-Rated Group 50 | . . 50 . . . Highest-Rated Ally 31 | . . 31 . . . Total Orders . | . . . . . . Ally Attacks 11 | . . 11 . . . Total Damage 126 | . . 126 . . . Kills 1 | . . 1 . . . Allies Corrupted . | . . . . . . Allies Melted . | . . . . . . Intel | -11 -10 -10 -10 -9 -8 ------- Run | Scr Mat Min Exi Min Mat Robot Analysis Total . | . . . . . . Derelict Logs Recovered . | . . . . . . Drone Launches . | . . . . . . Drone Recoveries . | . . . . . . Exploration | -11 -10 -10 -10 -9 -8 ------------- Run | Scr Mat Min Exi Min Mat Turns Passed 614 | 10 67 183 114 100 140 Spaces Moved 953 | 20 86 333 222 131 161 Core 563 | 20 86 333 124 . . Treads . | . . . . . . Legs . | . . . . . . Wheels . | . . . . . . Hover . | . . . . . . Flight 390 | . . . 98 131 161 Fastest Speed 50 | 50 50 50 50 50 50 Average Speed 50 | 50 50 50 50 50 50 Slowest Speed 50 | 50 50 50 50 50 50 Overloaded Moves . | . . . . . . Propulsion Burnouts . | . . . . . . Robots Hopped 5 | . . . . 2 3 Cave-ins Triggered . | . . . . . . Exploration Rate (%) 36 | 3 18 83 61 34 20 Regions Visited 5 Branch Regions 3 Pre-discovered Areas . | . . . . . . Known Exits Taken 5 | 1 1 1 1 1 . Unknown Exits Taken . | . . . . . . Scrap Searched 1 | . . . . 1 . Spaces Dug . | . . . . . . Terrain Destroyed 2 | . . . . 1 1 Melee . | . . . . . . Projectile 2 | . . . . 1 1 AOE . | . . . . . . Terrain Rammed . | . . . . . . Walls Destroyed . | . . . . . . Machines Disabled . | . . . . . . Actions | -11 -10 -10 -10 -9 -8 --------- Run | Scr Mat Min Exi Min Mat Total 1048 | 19 108 348 223 155 195 Wait 54 | . 22 16 . 13 3 Move 938 | 19 85 332 221 126 155 Hop 5 | . . . . 2 3 Pick Up 1 | . . . . . 1 Fast Attach 9 | . 1 . 2 3 3 Attach . | . . . . . . Detach . | . . . . . . Swap 1 | . . . . . 1 Drop 3 | . . . . 2 1 Fire 26 | . . . . 7 19 Melee . | . . . . . . Ram . | . . . . . . Kick . | . . . . . . Crush . | . . . . . . Escape Stasis . | . . . . . . Rewire . | . . . . . . Trap . | . . . . . . Miscellaneous 11 | . . . . 2 9 Route ------- -11/Scrapyard -10/Materials (discovered 2 exits: *Min x2) -10/Mines (discovered 3 exits: *Mat x2 / *Exi) -10/Exiles -9/Mines -8/Materials History --------- Turn | Location | Event 5 | -11/Scrapyard | Identified exit to Materials 5 | -11/Scrapyard | Discovered exit to Materials (range 12) 11 | -11/Scrapyard | Entered Materials 15 | -10/Materials | Identified exit to Mines 78 | -10/Materials | Entered Mines 166 | -10/Mines | Identified exit to Materials 166 | -10/Mines | Discovered exit to Materials (range 13) 175 | -10/Mines | Discovered exit to Materials (range 9) 254 | -10/Mines | Identified exit to Exiles 254 | -10/Mines | Discovered exit to Exiles (range 14) 258 | -10/Mines | Deemed a non-threat by the Exiles lab entrance 261 | -10/Mines | Entered Exiles 274 | -10/Exiles | Met 8R-AWN 282 | -10/Exiles | Met EX-HEX 299 | -10/Exiles | Met EX-BIN 306 | -10/Exiles | Aligned with FarCom system 307 | -10/Exiles | Given EX-Vault access code 315 | -10/Exiles | Build established: Hacker-Mutant 319 | -10/Exiles | Opened EX-Vault 324 | -10/Exiles | Upgraded with Propulsion slot (x3) 324 | -10/Exiles | Found Flying Fortress v7 327 | -10/Exiles | Found Gui. Plasma Cannon 339 | -10/Exiles | Warned to stay clear of 0b10 Research branches 353 | -10/Exiles | Met EX-DEC 370 | -10/Exiles | Identified exit to Mines 370 | -10/Exiles | Discovered exit to Mines (range 14) 375 | -10/Exiles | Stole two prototypes: Flying Fortress v7, Gui. Plasma Cannon 375 | -10/Exiles | Entered Mines 377 | -9/Mines | Reached level 2 420 | -9/Mines | Found a damaged Exp. Sensor Array with a note attached 422 | -9/Mines | Found Prototype Device 422 | -9/Mines | Identified Exp. Sensor Array 468 | -9/Mines | Identified exit to Materials 468 | -9/Mines | Discovered exit to Materials (range 13) 475 | -9/Mines | Entered Materials 477 | -8/Materials | Reached level 3 477 | -8/Materials | Reached level 4 477 | -8/Materials | Reached level 5 477 | -8/Materials | Reached level 6 518 | -8/Materials | Reached level 7 521 | -8/Materials | Upgraded with Power slot (x1) 521 | -8/Materials | Upgraded with Utility slot (x5) 521 | -8/Materials | Upgraded with Weapon slot (x2) 615 | -8/Materials | Self-destructed Last Messages --------------- 00539_ Used Protomatter to restore part integrity (+47, depleted) 00542_ Used Protomatter to restore part integrity (+18) 00542_ K-01 Serf collects debris. 00569_ G-47 Trooper destroyed. 00571_ K-01 Serf collects debris. 00597_ R-06 Scavenger collects Lgt. Treads. 00599_ K-01 Serf collects debris. 00600_ R-06 Scavenger collects Hvy. Assault Rifle. 00601_ Upgraded: Inventory Capacity (+2) 00601_ Acquired Protomatter-53. 00603_ K-01 Serf collects debris. 00607_ A-02 Transporter heat damages core (-4). 00607_ K-01 Serf collects debris. 00608_ Melted Lgt. Treads. 00609_ A-02 Transporter heat damages core (-4). 00609_ A-02 Transporter critical meltdown. 00609_ Transport Network Coupler melted. 00609_ K-01 Serf collects debris. 00609_ R-06 Scavenger collects Beam Rifle. 00612_ K-01 Serf collects debris. Map ----- +----------------------------------------------------+ | | | | | ?????????????????????????????????????????????????? | | ?????????????????????????????????????????????????? | | ?????????????????????????????????????????????????? | | ?????????????????????????????????????????????????? | | ?????????????????????????????????????????????????? | | ?????????????????????????????????????????????????? | | ?????????????????????????????????????????????????? | | ?????????????????????????????????????????????????? | | ?????????????????????????????????????????????????? | | ?????????????????????????????????????????????????? | | ???????????????????????#?????????????????????????? | | ????????????????????#??#????#????????????????????? | | ??????????????????????????#??#???????????????????? | | ???????????????????? ??? ? ?? ??????????????? | | ?????????????????????? ? ? ????? ? ? ????????????? | | ?????????????????+???? ????#?#?#?#???????????? | | ??????????????????? #?"?""??" ## ? ? ??????????? | | ???????????????????? + ?""""???## ? ?????????? | | ?????????????###??? # "?""""" ## ? ? ?w???????? | | ????????????#???## ? ? """"""" ## ? ? ????????? | | ???????????????##? ???""""""" ###########???????? | | ????????????#?#??# ##################?###??????? | | ??????????????#### #######k !##########??????? | | ?????????? @ k ###########?????? | | ?????????? ##########??????? | | ?????????? #?#########?????? | | ???????????###k############# k#####?#####?????? | | ?????????? ?? ?############# #####?###### ????? | | ??????????? ?"" #############r ############ ????? | | ?????????# ?"? ##########?## ############?????? | | ?????????? ?"? # ####### ############ ????? | | ????????## ? ? # [! ??? | | ???????###??? # /%/ ??? | | ?????????####??## !/ ??? | | ???????#?#????#?# ########### ######## ???? | | ????????#?#?#?#### ############% ######## ??? | | ????? ############ ## #### ######## ??? | | ????? ## #### ######## ? #?? | | ????? ## """ #### ######## ? ? | | ????? ## """ #### # # ? ??? | | ??????############ ## """ #### # # ?# ? | | ????????##??##?### ## #### # +? + ? | | ??????? ?? ?"?" # ###+####### # # # ? | | ??????#?? ? ? # # # ??? | | ???????? ? ?# + # ?#? | | ??????? ? ?? # ######## ? ?#? | | ????????"????""?# ########### ######## ?#? | | ????????????""" ################# # # ##? | +----------------------------------------------------+ Best States ------------- Heat Dissipation 97 Energy Generation 17 Energy Capacity 415 Matter Stores 300 Matter Capacity 300 Sight Range 16 Terrain Scan Range 14 Terrain Scan Density 910 Resistance: KI 35 Resistance: TH 35 Resistance: EX 35 Resistance: EM 35 Resistance: I 35 Resistance: S 35 Resistance: P 35 Evasion (%) 60 Offensive Hacking 20 Item Schematics ----------------- None Robot Schematics ------------------ None Fabricated ------------ Nothing Alien Tech Used ----------------- None Achievements -------------- None Challenges ------------ None RPGLIKE | -11 -10 -10 -10 -9 -8 --------- Run | Scr Mat Min Exi Min Mat Levels Raised 6 | . . . . 1 5 XP Earned 15331 | 6000 30 750 350 1514 6687 XP Spent 14260 | . . 1890 2400 1920 8050 Upgrades 34 | . . 9 3 12 10 Power Slot 1 | . . . . . 1 Propulsion Slot 3 | . . . 3 . . Utility Slot 5 | . . . . . 5 Weapon Slot 2 | . . . . . 2 Heat Dissipation 12 | . . . . 12 . Inventory Capacity 2 | . . . . . 2 Terrain Scan Density 9 | . . 9 . . . Protomatter Created 119 | . . . . 12 107 Integrity Restored 162 | . . . . 36 126 Core 97 | . . . . 36 61 Parts 65 | . . . . . 65 Protomatter Decayed 78 | . . 50 . . 28 Game ------ Seed VisualRiotSource Manual? 0 Play Time 00:09:24 Cumulative 263.3 hours Start 2021.09.29 @ 17:21:20 End 2021.09.29 @ 21:11:46 Sessions 3 Manual Loads 0 Difficulty Explorer Special Mode Winter2019/RPGLIKE Game No. 75 Rogue 0 Adventurer 0 Explorer 75 Win Type - Total 25 Types 14/3/1/1/1/2/1/2/0 Lore% 69 Gallery% 84 Achievement% 78 Wizard Run 0 Options --------- ASCII 1 Keyboard 0 Movement Arrows Keybinds 0 Fullscreen 1 Font 18/SmallcapsGlow Map View 76x50 Tactical HUD 1 Map Filters NONE Filters NONE Steam 1 RUN: 720d978e-17dd-46b5-99ae-1cdac01066cd